bitfinex/quotes_ETHUSD_20250511
["timestamp","ask_amount","ask_price","bid_price","bid_amount"]
[1746950760025,4.2757418,2487.1,2486.0,0.8674146]
[1746950760525,0.06243192,2487.0,2486.0,0.8674146]
[1746950760705,0.06243192,2487.0,2486.0,8.0402146]
[1746950760890,0.06243192,2487.0,2486.1,4.3312]
[1746950761094,4.02172926,2486.5,2486.1,4.3312]
[1746950761326,0.06087945,2486.4,2486.1,4.3312]
[1746950761628,0.06087945,2486.4,2486.1,3.504]
[1746950761830,0.06087945,2486.4,2485.7,0.43312]
[1746950761831,4.08279182,2486.4,2486.0,3.504]
[1746950761992,4.08290267,2486.4,2486.0,3.504]
[1746950762192,0.06087945,2486.4,2486.0,3.93712]
[1746950762435,4.02172144,2486.5,2486.1,0.04022415]
[1746950762765,3.493,2486.6,2486.0,3.504]
[1746950762911,0.22312419,2486.4,2486.0,3.504]
[1746950763112,3.493,2486.6,2486.0,3.504]
[1746950763330,0.22328623,2486.3,2486.0,3.504]
[1746950763639,4.02183294,2486.5,2486.0,3.504]
[1746950763798,0.22344828,2486.2,2486.0,3.504]
[1746950764009,4.0217939,2486.5,2486.0,3.504]
[1746950764530,4.02236434,2486.1,2486.0,3.504]
[1746950764832,4.02260471,2486.0,2485.5,0.7726]
[1746950765043,4.24582478,2486.1,2485.6,3.492]
[1746950765198,0.22371305,2485.9,2485.6,3.492]
[1746950765397,4.02243589,2486.1,2485.6,3.91846]
[1746950765593,0.22387515,2485.8,2485.6,3.492]
[1746950765894,0.20138526,2485.7,2485.6,3.492]
[1746950766099,4.02275973,2485.9,2485.6,3.492]
[1746950766339,0.20087924,2485.8,2485.6,3.492]
[1746950766830,3.493,2486.6,2485.6,3.95869185]
[1746950766998,3.493,2486.6,2485.7,0.8204]
[1746950766999,7.51465238,2486.6,2485.7,0.8204]
[1746950767326,0.19269879,2486.5,2485.7,0.8204]
[1746950767492,4.02246905,2486.1,2485.7,0.8204]
[1746950767691,0.19350904,2486.0,2485.7,0.8204]
[1746950768105,0.19350904,2486.0,2485.7,1.25164]
[1746950768326,4.02213892,2486.3,2485.7,1.25164]
[1746950768634,0.19393446,2485.9,2485.7,1.25164]
[1746950768936,0.19409657,2485.8,2485.7,1.25164]
[1746950769319,4.02204078,2486.3,2485.7,1.25164]
[1746950769508,0.1940358,2485.8,2485.7,0.8204]
[1746950769708,4.02204078,2486.3,2485.7,0.8204]
[1746950769910,4.02244939,2486.1,2485.7,0.8204]
[1746950770110,0.19371161,2486.0,2485.7,0.8204]
[1746950770997,4.02230082,2486.2,2485.7,0.8204]
[1746950771299,4.02221793,2486.2,2485.7,0.8204]
[1746950771500,0.19334696,2486.1,2485.7,0.8204]
[1746950771693,0.19334696,2486.1,2485.6,3.492]
[1746950771895,4.02284978,2485.8,2485.7,3.492]
[1746950772112,4.21643991,2485.8,2485.7,3.492]
[1746950772311,0.19359013,2485.8,2485.7,3.492]
[1746950772509,4.24795372,2485.8,2485.7,3.492]
[1746950772719,0.41869407,2485.8,2485.6,3.492]
[1746950772908,4.44159987,2485.8,2485.6,3.492]
[1746950773121,0.41869407,2485.8,2485.7,0.8092]
[1746950773326,0.41869407,2485.8,2485.7,0.84942983]
[1746950773327,0.22510394,2485.8,2485.7,0.84942983]
[1746950773652,4.02188072,2486.4,2485.7,0.84942983]
[1746950774001,0.17084457,2486.3,2485.7,0.84942983]
[1746950774303,0.17084457,2486.3,2485.7,8.84942983]
[1746950774613,7.50852113,2486.7,2485.8,1.26906298]
[1746950774818,0.17100662,2486.2,2485.9,0.04022142]
[1746950775014,0.22497694,2486.6,2485.9,0.04022142]
[1746950775217,0.17116868,2486.1,2485.9,0.04022142]
[1746950775403,0.22497694,2486.5,2485.9,0.04022142]
[1746950775620,0.22497694,2486.5,2486.0,0.8092]
[1746950775821,0.22497694,2486.5,2486.1,0.04021688]
[1746950776032,4.0205713,2487.3,2486.4,0.8092]
[1746950776347,4.02019714,2487.5,2486.5,16.761]
[1746950776548,4.02059169,2487.2,2486.5,16.761]
[1746950776747,0.29529386,2487.5,2486.5,13.269]
[1746950776748,4.02128963,2486.8,2486.5,13.269]
[1746950776921,4.02120099,2486.9,2486.6,3.492]
[1746950777122,0.30467354,2487.5,2486.6,3.492]
[1746950777447,12.80159359,2487.7,2486.7,8.7685]
[1746950777448,4.80158519,2487.7,2486.7,8.7685]
[1746950777634,4.02007292,2487.6,2486.8,0.04020749]
[1746950777854,4.02007292,2487.6,2486.8,1.27027824]
[1746950778312,4.01993889,2487.6,2486.8,1.27027824]
[1746950778913,0.8263,2488.4,2487.3,0.7685]
[1746950779149,4.01913289,2488.1,2487.4,3.53119537]
[1746950779471,4.01883367,2488.3,2487.4,3.53119537]
[1746950779472,4.01895162,2488.3,2487.5,0.04019592]
[1746950780142,4.01885449,2488.3,2487.5,0.04019592]
[1746950780465,0.8263,2488.4,2487.5,0.04019592]
[1746950780466,0.8263,2489.7,2487.6,0.7685]
[1746950780755,4.01787974,2488.9,2488.0,0.7685]
[1746950780924,4.01787974,2488.9,2488.1,16.79918419]
[1746950781252,3.483,2489.6,2488.3,0.7685]
[1746950781419,4.01729707,2489.3,2488.4,0.87685]
[1746950781623,4.01729707,2489.3,2488.3,0.7685]
[1746950781827,8.0,2489.5,2488.4,0.04017773]
[1746950782041,8.0,2489.5,2488.5,0.7685]
[1746950782226,3.481,2489.6,2488.5,0.7685]
[1746950782447,8.0,2489.5,2488.7,0.7685]
[1746950782652,5.02493105,2490.0,2488.9,0.7685]
[1746950782873,9.04111786,2490.0,2489.0,0.81813373]
[1746950783041,4.01622709,2489.9,2489.0,0.81813373]
[1746950783234,4.01611411,2490.0,2489.0,0.81813373]
[1746950783444,4.01611411,2490.0,2489.1,0.7685]
[1746950783626,0.8263,2490.5,2489.1,0.7685]
[1746950783841,3.48,2490.4,2489.2,0.0401664]
[1746950784042,4.01623097,2489.9,2489.2,0.0401664]
[1746950784773,4.01612785,2490.0,2489.2,0.0401664]
[1746950784959,4.01638584,2489.9,2489.2,0.0401664]
[1746950785270,4.01638584,2489.9,2489.2,0.04016637]
[1746950785630,1.12916386,2491.0,2489.3,0.7685]
[1746950785861,4.01543191,2490.4,2489.5,0.7685]
[1746950786033,17.37583839,2491.0,2489.5,0.7685]
[1746950786236,5.36128143,2491.0,2489.6,3.489]
[1746950786569,0.8263,2491.0,2489.7,8.0]
[1746950786882,0.8263,2491.0,2489.8,1.15291621]
[1746950787179,0.8263,2491.4,2489.9,0.7685]
[1746950787333,0.11031998,2490.9,2490.1,0.7826]
[1746950787537,0.11031998,2490.9,2490.3,0.7826]
[1746950787750,0.005,2491.9,2490.6,0.7826]
[1746950788075,4.01803006,2491.9,2490.9,0.7826]
[1746950788270,0.005,2491.9,2490.9,0.82274105]
[1746950788434,0.005,2491.9,2490.9,0.7826]
[1746950788644,4.01328158,2491.8,2491.0,3.52813606]
[1746950788869,0.005,2491.9,2491.0,0.04013606]
[1746950789184,4.01367908,2491.5,2491.1,3.488]
[1746950789398,0.005,2491.9,2491.1,3.488]
[1746950789887,0.1088675,2491.8,2491.2,0.7826]
[1746950790275,0.005,2491.9,2491.3,3.488]
[1746950790456,0.005,2491.9,2491.4,3.487]
[1746950790657,0.1836923,2491.8,2491.2,0.7826]
[1746950790870,0.1836923,2491.8,2491.3,3.487]
[1746950791190,4.19690951,2491.8,2491.3,3.487]
[1746950791385,4.19690951,2491.8,2491.2,0.7826]
[1746950791757,4.19690951,2491.8,2491.3,3.487]
[1746950791952,4.01335428,2491.7,2491.2,0.7826]
[1746950792152,4.01365231,2491.5,2491.2,0.7826]
[1746950792771,0.1836923,2491.8,2491.3,3.487]
[1746950792975,4.19694634,2491.8,2490.8,0.7867]
[1746950793175,0.55,2491.7,2490.8,0.7867]
[1746950793377,0.55,2491.7,2490.9,3.487]
[1746950793378,4.01396861,2491.3,2490.9,3.487]
[1746950793550,4.01429087,2491.1,2490.9,3.486]
[1746950794076,3.472,2491.2,2490.8,0.7867]
[1746950794282,4.01483679,2490.8,2490.4,0.7867]
[1746950794491,4.56433258,2491.1,2490.4,0.7867]
[1746950794661,4.56433258,2491.1,2490.5,3.471]
[1746950794662,4.01522403,2490.6,2490.5,3.471]
[1746950794856,4.01509676,2490.6,2490.5,3.471]
[1746950795057,4.12590113,2490.6,2490.5,3.471]
[1746950795465,4.12590113,2490.6,2490.0,0.7867]
[1746950795466,0.11080437,2490.6,2490.0,0.7867]
[1746950795670,4.01638626,2489.9,2489.7,4.2577]
[1746950795974,0.11209665,2489.8,2489.7,3.471]
[1746950796177,4.1284835,2489.8,2489.7,3.471]
[1746950796382,0.11209665,2489.8,2489.7,3.471]
[1746950796995,0.11331707,2489.8,2489.7,3.471]
[1746950797191,4.01610578,2490.0,2489.7,3.471]
[1746950797369,0.11315549,2489.9,2489.7,3.471]
[1746950797574,7.48692485,2490.1,2489.7,3.471]
[1746950797783,0.18317699,2490.0,2489.7,3.471]
[1746950797955,4.01389905,2491.4,2489.7,3.471]
[1746950797956,0.7672,2490.9,2489.8,0.7737]
[1746950798157,0.16868399,2490.8,2489.8,8.81386287]
[1746950798503,0.16868399,2490.8,2489.9,0.7737]
[1746950798683,0.16868399,2490.8,2490.3,0.7737]
[1746950798861,4.01332423,2491.7,2490.5,8.0]
[1746950799060,4.2362,2491.8,2490.6,0.81384159]
[1746950799061,4.01351078,2491.6,2490.6,0.81384159]
[1746950799359,0.15394263,2491.6,2490.6,0.81384159]
[1746950799566,4.01337523,2491.7,2490.6,0.81384159]
[1746950799798,4.16928413,2491.6,2490.6,0.81384159]
[1746950800102,4.16928413,2491.6,2490.7,1.22828416]
[1746950800279,0.15575203,2491.6,2490.8,0.04014085]
[1746950800459,0.15575203,2491.6,2490.9,0.7737]
[1746950800895,4.16926019,2491.6,2490.9,0.7737]
[1746950801112,4.01381933,2491.4,2490.9,0.7737]
[1746950801297,0.15575203,2491.6,2490.9,0.7737]
[1746950801502,0.05949949,2491.3,2491.0,3.51114036]
[1746950801792,4.01358348,2491.6,2491.0,3.51114036]
[1746950801965,4.11005956,2491.5,2491.0,3.51114036]
[1746950802287,4.11005956,2491.5,2491.0,3.471]
[1746950802799,0.09641278,2491.5,2491.0,3.471]
[1746950803817,4.11006201,2491.5,2491.0,3.51114052]
[1746950804296,4.0139076,2491.4,2491.0,3.51114052]
[1746950804499,0.09641278,2491.5,2491.1,3.47]
[1746950804659,4.01427517,2491.2,2491.1,3.47]
[1746950805074,4.15799092,2491.2,2491.1,3.47]
[1746950805693,0.93221575,2491.2,2491.1,3.47]
[1746950805895,0.55,2491.1,2490.2,0.8247]
[1746950806067,4.01511312,2490.6,2490.3,3.47]
[1746950806267,7.47978332,2490.8,2490.3,3.47]
[1746950806468,0.08477118,2490.5,2490.3,3.47]
[1746950806783,4.01503787,2490.7,2490.3,3.47]
[1746950806784,0.14211121,2490.4,2490.3,3.47]
[1746950809474,0.14211121,2490.4,2490.3,3.51015422]
[1746950809677,0.14211121,2490.4,2490.3,3.90348561]
[1746950810999,4.01430913,2491.1,2490.3,3.90348561]
[1746950811298,7.47700576,2491.3,2490.5,0.7711]
[1746950811490,3.463,2491.3,2490.6,0.04014613]
[1746950811966,7.47704492,2491.3,2490.6,0.04014613]
[1746950812165,0.05924169,2491.2,2490.5,0.7711]
[1746950812374,4.01441985,2491.1,2490.5,0.7711]
[1746950812579,4.01464524,2490.9,2490.5,0.7711]
[1746950813100,4.0147765,2490.8,2490.5,0.7711]
[1746950813299,4.01467311,2490.9,2490.5,0.7711]
[1746950813595,4.01480426,2490.8,2490.5,0.7711]
[1746950813799,4.01480426,2490.8,2490.6,3.47]
[1746950814003,4.01468551,2490.9,2490.6,3.47]
[1746950814298,4.01486663,2490.8,2490.0,13.244]
[1746950814495,4.01509676,2490.6,2490.1,4.2241]
[1746950814689,0.7978,2490.9,2490.2,3.47]
[1746950814884,4.81256408,2490.9,2490.2,3.47]
[1746950815090,4.01493913,2490.7,2490.2,3.47]
[1746950815709,4.01482642,2490.8,2490.2,3.47]
[1746950815889,0.05769444,2490.6,2490.2,3.47]
[1746950816203,0.0574365,2490.5,2490.2,3.47]
[1746950816385,4.01493982,2490.7,2490.1,0.7541]
[1746950816592,0.05769444,2490.6,2490.3,3.47]
[1746950816905,4.01529425,2490.5,2490.4,3.47]
[1746950817099,4.07282733,2490.6,2490.4,3.47]
[1746950817300,4.01480543,2490.8,2490.4,3.47]
[1746950817301,0.0574365,2490.5,2490.4,3.47]
[1746950817705,4.01512033,2490.6,2490.4,3.47]
[1746950817886,4.01547229,2490.4,2490.0,13.244]
[1746950818087,4.07276618,2490.5,2490.1,3.47]
[1746950818309,0.05692054,2490.3,2490.1,3.47]
[1746950818605,0.05666253,2490.2,2490.1,3.47]
[1746950818805,4.01552941,2490.4,2490.1,3.47]
[1746950819007,0.06655927,2490.3,2490.1,3.47]
[1746950819171,0.7978,2490.9,2490.1,5.1414]
[1746950819372,0.12365718,2490.8,2490.2,0.79955663]
[1746950819572,0.12365718,2490.8,2490.2,0.7594]
[1746950819773,4.01351832,2491.6,2490.3,8.0]
[1746950820004,4.01351832,2491.6,2490.6,0.7594]
[1746950820005,4.01359838,2491.6,2490.6,0.7594]
[1746950820217,0.12357994,2491.5,2490.7,0.04014118]
[1746950820371,0.12357994,2491.5,2490.6,0.7594]
[1746950820808,0.12357994,2491.5,2490.7,3.47]
[1746950820975,0.12357994,2491.5,2490.7,3.5101426]
[1746950821172,0.12357994,2491.5,2490.8,0.42695426]
[1746950821518,0.12357994,2491.5,2491.0,0.7594]
[1746950821823,0.12357994,2491.5,2491.1,0.04013845]
[1746950821992,0.12357994,2491.5,2491.0,0.7594]
[1746950822189,0.12357994,2491.5,2490.5,0.7594]
[1746950822386,4.01425343,2491.2,2490.6,3.51014683]
[1746950822625,4.01425343,2491.2,2490.7,3.47]
[1746950822822,4.01431513,2491.1,2490.8,3.47]
[1746950822974,0.05872602,2491.0,2490.9,3.47]
[1746950823318,0.05872602,2491.0,2490.9,4.2294]
[1746950823610,0.005,2491.9,2490.9,4.2294]
[1746950823611,0.005,2491.9,2491.0,0.7594]
[1746950823824,0.11145821,2491.8,2491.1,0.7594]
[1746950824176,0.11145821,2491.8,2491.2,0.79953153]
[1746950824471,0.11145821,2491.8,2491.3,13.244]
[1746950825225,0.11145821,2491.8,2491.4,0.79953108]
[1746950825404,0.11145821,2491.8,2491.4,0.7594]
[1746950825575,0.005,2491.9,2491.4,0.7594]
[1746950825770,0.005,2491.9,2491.5,0.04012782]
[1746950826015,0.11145821,2491.8,2491.6,3.455]
[1746950827100,4.12467235,2491.8,2491.4,0.7594]
[1746950827301,0.11145821,2491.8,2491.5,3.455]
[1746950827501,4.01367422,2491.5,2491.3,13.244]
[1746950827801,4.06181956,2491.4,2491.3,13.244]
[1746950828001,4.06181956,2491.4,2490.5,0.7594]
[1746950828002,4.84301956,2491.4,2490.5,0.7594]
[1746950828237,0.82921207,2491.4,2490.6,3.455]
[1746950828437,0.82921207,2491.4,2490.5,14.0014]
[1746950828438,4.01509676,2490.6,2490.5,13.242]
[1746950828741,3.49894924,2490.6,2490.5,13.242]
[1746950829248,3.72313394,2490.6,2490.5,13.242]
[1746950829413,0.27013394,2490.6,2490.5,13.242]
[1746950829837,0.27013394,2490.6,2490.5,14.0014]
[1746950829838,0.02158424,2490.6,2490.5,14.0014]
[1746950830042,0.7862,2491.9,2490.7,0.7594]
[1746950830335,4.01332423,2491.7,2490.7,0.7594]
[1746950830542,0.05512415,2491.8,2490.6,8.0]
[1746950830543,0.05512415,2491.8,2491.1,8.0]
[1746950830729,0.05544683,2491.6,2491.3,0.7594]
[1746950830906,0.005,2491.9,2491.4,0.04012519]
[1746950831110,0.005,2491.9,2491.5,0.7594]
[1746950831312,0.005,2491.9,2491.6,0.04012499]
[1746950831836,0.10416713,2491.8,2491.6,0.04012499]
[1746950832717,0.10416713,2491.8,2491.7,0.757]
[1746950833215,0.005,2491.9,2491.7,0.757]
[1746950833415,0.005,2491.9,2491.8,13.28112502]
[1746950833623,0.005,2491.9,2491.8,14.67470576]
[1746950834436,0.005,2491.9,2491.8,13.241]
[1746950835115,0.10926349,2491.9,2491.8,13.241]
[1746950835314,0.005,2491.9,2491.8,13.241]
[1746950835514,0.10926349,2491.9,2491.8,13.241]
[1746950835751,0.005,2491.9,2491.8,13.241]
[1746950836057,0.005,2491.9,2491.8,16.695]
[1746950836229,0.10926349,2491.9,2491.8,16.695]
[1746950837115,0.005,2491.9,2491.8,13.241]
[1746950837319,4.12226561,2491.9,2491.8,16.695]
[1746950838033,0.10926349,2491.9,2491.8,16.695]
[1746950838931,0.005,2491.9,2491.8,24.695]
[1746950839852,0.005,2491.9,2491.8,25.4814]
[1746950840564,0.005,2491.9,2491.8,17.4814]
[1746950840962,0.005,2491.9,2491.8,25.4814]
[1746950841169,0.005,2491.9,2491.8,28.02954]
[1746950842366,0.005,2491.9,2491.8,30.81211]
[1746950842675,0.005,2492.9,2492.0,0.7554]
[1746950842834,0.005,2492.9,2491.9,8.0]
[1746950842835,0.005,2492.9,2492.3,0.7554]
[1746950843034,0.005,2492.9,2492.4,3.453]
[1746950843035,4.01180907,2492.7,2492.4,3.453]
[1746950843333,4.01175006,2492.7,2492.4,3.453]
[1746950843563,4.01190973,2492.6,2492.4,3.453]
[1746950843881,4.0120361,2492.5,2492.4,3.453]
[1746950844048,4.01249911,2492.3,2491.8,13.241]
[1746950844251,0.09717667,2492.8,2491.9,3.453]
[1746950844433,4.01300331,2491.9,2491.8,3.453]
[1746950845676,4.01300331,2491.9,2491.3,0.04013345]
[1746950845677,4.01303654,2491.9,2491.7,3.453]
[1746950845879,4.01316317,2491.8,2491.7,3.453]
[1746950846382,4.06220615,2491.8,2491.7,3.453]
[1746950848443,4.01391382,2491.4,2491.2,13.237]
[1746950848643,4.01391382,2491.4,2491.3,3.453]
[1746950848977,4.01396861,2491.3,2491.2,13.237]
[1746950849294,4.06098939,2491.3,2491.2,13.237]
[1746950849846,4.10874368,2491.3,2491.2,13.237]
[1746950850165,0.09477507,2491.3,2491.2,14.0296]
[1746950850376,4.01338269,2491.7,2491.2,14.0296]
[1746950850679,4.83466771,2492.8,2491.5,4.23211757]
[1746950850982,0.005,2492.9,2491.2,14.98526]
[1746950850983,0.005,2492.9,2492.0,0.7926]
[1746950851147,0.04072329,2492.8,2492.2,8.0]
[1746950851341,0.005,2492.9,2492.4,0.7926]
[1746950851554,0.005,2492.9,2492.5,13.27911103]
[1746950851841,0.005,2492.9,2492.5,13.239]
[1746950852165,0.03317943,2492.8,2492.5,13.239]
[1746950852368,0.005,2492.9,2492.5,13.239]
[1746950852743,0.03317943,2492.8,2492.6,0.04010714]
[1746950852944,0.005,2492.9,2492.6,1.44727785]
[1746950853154,0.005,2492.9,2492.7,0.7926]
[1746950853354,0.005,2492.9,2492.8,3.454]
[1746950853867,0.005,2492.9,2492.8,3.49410633]
[1746950854053,0.005,2492.9,2492.8,3.454]
[1746950854250,0.005,2492.9,2492.8,4.95718551]
[1746950854891,0.005,2492.9,2492.8,12.95718551]
[1746950855090,0.005,2492.9,2492.8,25.76273308]
[1746950855395,0.005,2492.9,2492.8,24.18973308]
[1746950855590,0.005,2492.9,2492.8,23.63973308]
[1746950856096,0.005,2492.9,2492.8,28.54861208]
[1746950856387,0.005,2492.9,2492.8,17.98190308]
[1746950856687,0.005,2492.9,2492.8,22.08438608]
[1746950856989,0.005,2492.9,2492.8,17.98190308]
[1746950857291,0.005,2492.9,2492.8,25.53377708]
[1746950857791,0.005,2492.9,2492.8,17.98190308]
[1746950858153,0.005,2492.9,2492.8,29.94290108]
[1746950858381,0.005,2492.9,2492.8,20.11620608]
[1746950858584,0.005,2492.9,2492.8,20.65641808]
[1746950858769,0.005,2492.9,2492.8,17.18478551]
[1746950859086,0.005,2492.9,2492.8,4.3548804]
[1746950859593,0.005,2492.9,2492.8,3.437]
[1746950859757,0.005,2492.9,2492.8,3.436]
[1746950860255,0.005,2492.9,2492.8,4.2286]
[1746950861578,0.005,2492.9,2492.8,4.26870209]
[1746950861775,0.005,2492.9,2492.8,5.6208388]
[1746950862084,0.005,2492.9,2492.8,13.6208388]
[1746950862289,0.005,2492.9,2492.8,32.84481771]
[1746950862469,0.005,2492.9,2492.8,22.75909171]
[1746950862668,4.00924018,2494.3,2493.0,0.814]
[1746950862876,4.00936773,2494.2,2493.1,0.8814]
[1746950863082,4.2281,2494.5,2493.2,0.04009773]
[1746950863466,4.00941137,2494.2,2493.2,0.04009773]
[1746950863662,4.00911383,2494.4,2493.2,0.04009773]
[1746950863663,4.00923466,2494.3,2493.2,0.04009773]
[1746950864287,4.00923466,2494.3,2493.1,0.8814]
[1746950864494,4.00953585,2494.1,2493.1,0.8814]
[1746950864663,4.00891633,2494.5,2493.2,8.8540955]
[1746950864882,4.80511744,2494.4,2493.2,11.1873455]
[1746950865097,4.00971239,2494.0,2493.2,10.58187946]
[1746950865298,0.7961,2494.4,2493.2,14.01687946]
[1746950865498,4.00925591,2494.3,2493.2,14.01687946]
[1746950865703,0.7961,2494.4,2493.2,14.01687946]
[1746950866003,4.00951643,2494.1,2493.2,14.01687946]
[1746950866206,4.00951643,2494.1,2493.2,13.89161296]
[1746950866508,4.00932314,2494.2,2493.2,13.89161296]
[1746950866820,7.43916219,2494.3,2493.2,13.89161296]
[1746950867106,3.43,2494.3,2493.2,13.89161296]
[1746950867899,0.7961,2494.4,2493.2,13.89161296]
[1746950868103,0.7961,2494.4,2493.2,24.72068796]
[1746950868306,4.00858582,2494.7,2493.2,24.15284996]
[1746950868503,4.00717966,2495.6,2493.4,0.55]
[1746950868818,4.00797966,2495.1,2493.9,0.7764]
[1746950869021,4.00797966,2495.1,2494.0,16.7040815]
[1746950869185,3.428,2495.4,2494.1,8.0]
[1746950869385,7.43546285,2495.4,2494.1,8.30504498]
[1746950869588,4.0082733,2494.9,2494.1,8.30504498]
[1746950869910,4.00836846,2494.8,2494.2,3.435]
[1746950870081,4.00851044,2494.7,2494.2,3.435]
[1746950870280,0.7523,2494.9,2494.3,3.435]
[1746950870500,4.00860379,2494.7,2494.3,3.435]
[1746950870709,4.00833734,2494.8,2494.3,3.435]
[1746950870911,4.00828616,2494.9,2494.4,0.04008842]
[1746950871215,4.00833734,2494.8,2494.4,0.04008842]
[1746950871799,0.7523,2494.7,2494.0,16.664]
[1746950871984,4.76081891,2494.7,2494.0,16.664]
[1746950872315,4.0086587,2494.6,2494.0,16.664]
[1746950872616,0.7523,2494.7,2494.0,16.664]
[1746950872801,4.76083616,2494.7,2494.1,0.0400889]
[1746950872982,4.00883751,2494.5,2494.1,0.0400889]
[1746950873183,4.00883751,2494.5,2494.0,16.664]
[1746950873384,4.00902492,2494.4,2494.0,16.664]
[1746950873598,4.00883751,2494.5,2494.0,16.664]
[1746950873794,4.76091677,2494.7,2494.0,16.664]
[1746950874014,0.7523,2494.7,2494.1,0.04008746]
[1746950874215,4.76083774,2494.7,2494.1,0.04008746]
[1746950874414,0.7523,2494.7,2494.1,0.85128746]
[1746950874620,7.43302422,2495.0,2494.1,0.85128746]
[1746950874822,3.425,2495.0,2494.1,2.56272875]
[1746950875123,3.425,2495.0,2494.1,0.8112]
[1746950875417,4.00864575,2494.7,2494.1,0.8112]
[1746950875922,4.00867007,2494.6,2494.1,0.8112]
[1746950876121,4.0088217,2494.5,2494.0,16.664]
[1746950876286,4.00867246,2494.6,2494.0,16.664]
[1746950876489,4.00928167,2494.3,2494.0,16.664]
[1746950876738,4.00914182,2494.3,2494.0,16.664]
[1746950877022,4.00887411,2494.5,2494.1,3.435]
[1746950877223,4.00879513,2494.6,2494.1,3.435]
[1746950877393,4.78369191,2494.8,2494.1,3.435]
[1746950877592,4.78369191,2494.8,2494.2,0.04009208]
[1746950877986,4.00884738,2494.5,2494.2,0.04009208]
[1746950878192,4.77474802,2494.3,2494.0,13.229]
[1746950878392,4.00946233,2494.1,2494.0,16.663]
[1746950878594,4.00930157,2494.2,2494.0,16.663]
[1746950878793,4.00946233,2494.1,2494.0,16.663]
[1746950879025,4.00930157,2494.2,2494.0,16.663]
[1746950879361,8.19679868,2494.3,2494.0,16.663]
[1746950879507,4.00931703,2494.2,2494.0,16.663]
[1746950879695,0.03876677,2494.2,2494.0,16.663]
[1746950879895,8.1967876,2494.3,2494.0,16.663]
[1746950880399,0.03876677,2494.2,2494.0,16.663]
[1746950880603,7.43129774,2494.3,2494.0,16.663]
[1746950880807,4.0481093,2494.2,2494.0,16.663]
[1746950881003,0.03876677,2494.2,2494.0,16.663]
[1746950881209,0.7656,2494.5,2494.0,16.663]
[1746950881407,4.00945321,2494.2,2494.0,13.229]
[1746950881606,4.00994466,2493.8,2493.3,3.435]
[1746950881793,4.0107488,2493.3,2493.2,3.435]
[1746950882026,0.03981021,2493.3,2493.2,3.435]
[1746950882402,4.00987158,2493.9,2493.2,3.435]
[1746950882605,0.0390047,2493.8,2493.2,3.435]
[1746950882806,4.1856,2494.0,2493.3,0.38360127]
[1746950883035,4.00995659,2493.8,2493.2,3.435]
[1746950883348,0.03680934,2493.7,2493.2,3.435]
[1746950883503,4.0107488,2493.3,2493.2,3.435]
[1746950883701,4.04818226,2493.3,2493.2,3.435]
[1746950884338,0.03743346,2493.3,2493.2,3.435]
[1746950884692,0.7656,2493.7,2493.2,3.435]
[1746950885034,4.0107488,2493.3,2493.2,3.435]
[1746950885237,0.7656,2493.7,2493.2,3.435]
[1746950885238,0.03666562,2493.6,2493.2,5.1011]
[1746950885442,0.03714896,2493.3,2493.2,5.1011]
[1746950885590,4.01016862,2493.7,2493.2,5.1011]
[1746950885795,0.03636077,2493.6,2493.2,3.435]
[1746950886039,0.03636077,2493.6,2493.3,0.04010328]
[1746950886349,4.77618795,2493.4,2491.9,0.8147]
[1746950886495,4.77618795,2493.4,2492.0,3.419]
[1746950886496,4.01223018,2492.4,2492.0,3.419]
[1746950886700,0.7656,2492.8,2492.0,3.419]
[1746950886701,4.01217179,2492.5,2492.0,3.419]
[1746950887033,4.05018961,2492.4,2492.0,3.419]
[1746950887236,0.7656,2492.3,2491.3,13.228]
[1746950887434,0.7656,2492.3,2491.4,3.419]
[1746950887435,4.01328077,2491.8,2491.4,3.419]
[1746950887732,4.01360323,2491.6,2491.4,3.419]
[1746950887934,0.03781778,2491.7,2491.4,3.419]
[1746950888095,0.03814049,2491.5,2491.4,3.419]
[1746950888291,3.417,2491.8,2491.4,3.4591357]
[1746950888529,0.03807948,2491.5,2491.4,3.4591357]
[1746950888721,3.417,2491.9,2491.4,3.93116944]
[1746950888918,0.03807948,2491.5,2491.4,3.419]
[1746950889233,0.7772,2492.4,2491.5,0.8157]
[1746950889406,4.1942,2492.4,2491.6,0.04012784]
[1746950889607,8.20640562,2492.4,2491.6,0.04012784]
[1746950889823,4.1942,2492.4,2491.6,0.04012784]
[1746950890026,0.7772,2492.4,2491.6,1.26761062]
[1746950890235,3.417,2492.5,2491.6,1.26761062]
[1746950890625,4.56198681,2492.6,2491.4,3.419]
[1746950890812,4.01364639,2491.5,2490.6,0.8157]
[1746950891137,4.01476338,2490.9,2490.7,3.42]
[1746950891342,0.7772,2491.4,2490.7,3.42]
[1746950891537,3.417,2491.4,2490.7,3.42]
[1746950891723,8.0,2492.0,2490.7,3.42]
[1746950891724,4.23211757,2492.5,2490.9,0.8157]
[1746950891909,4.01280518,2492.1,2491.0,0.04013256]
[1746950892230,4.1932,2492.4,2490.9,0.8157]
[1746950892231,4.01330186,2491.8,2490.9,0.8157]
[1746950892436,4.01250668,2492.3,2491.0,0.04013426]
[1746950892650,4.01295216,2492.0,2491.0,0.04013073]
[1746950892825,4.01295216,2492.0,2491.0,0.9599138]
[1746950893024,4.01265358,2492.2,2491.0,0.9599138]
[1746950893226,4.1932,2492.4,2491.1,0.7653]
[1746950893540,4.01391557,2491.4,2491.1,3.421]
[1746950893702,0.40139156,2491.4,2491.1,3.421]
[1746950893903,4.01429087,2491.1,2490.4,0.7653]
[1746950894107,4.01429087,2491.1,2490.5,3.421]
[1746950894344,4.01406832,2491.3,2490.5,3.421]
[1746950894543,4.01440959,2491.1,2490.5,3.421]
[1746950894846,4.01447223,2491.0,2490.5,5.16273]
[1746950895004,3.416,2491.4,2490.5,3.421]